fUSD/lending_fUSD_20250828
["ID","MTS","AMOUNT","RATE_DAILY","PERIOD"]
[381897372,1756396240137,-500.0,0.00021773,2]
[381897375,1756396240148,-500.0,0.00021773,2]
[381897378,1756396240157,-5000.0,0.00021918,2]
[381897380,1756396240166,-2021.1441,0.0002199,2]
[381897382,1756396240176,-2231.3952592,0.00022039,2]
[381897384,1756396240185,-380.0,0.00022047,2]
[381897386,1756396240195,-500.0,0.00022047,2]
[381897388,1756396240204,-500.0,0.00022047,2]
[381897390,1756396240213,-250.0,0.00022047,2]
[381897392,1756396240223,-500.0,0.00022047,2]
[381897394,1756396240236,-433.0,0.00022047,2]
[381897396,1756396240247,-556.45403072,0.00022194,2]
[381897398,1756396240256,-500.0,0.00022321,2]
[381897400,1756396240265,-500.0,0.00022321,2]
[381897402,1756396240275,-500.0,0.00022321,2]
[381897403,1756396240284,-1000.0,0.00022412,2]
[381897404,1756396240293,-410.4900423,0.00022431,2]
[381897405,1756396240303,-1092.93344712,0.000225,2]
[381897406,1756396240314,-500.0,0.00022595,2]
[381897407,1756396240323,-500.0,0.00022595,2]
[381897427,1756396240512,-541.0,0.00022595,2]
[381897429,1756396240522,-500.0,0.00022869,2]
[381897431,1756396240532,-500.0,0.00022869,2]
[381897433,1756396240541,-497.8915815,0.0002293,2]
[381897435,1756396240551,-500.0,0.00023143,2]
[381897437,1756396240560,-500.0,0.00023143,2]
[381897439,1756396240569,-150.0,0.00023182,2]
[381897441,1756396240578,-150.0,0.00023182,2]
[381897442,1756396240587,-150.0,0.00023182,2]
[381897444,1756396240597,-500.0,0.00023182,2]
[381897446,1756396240606,-255.41841776,0.00023182,2]
[381897448,1756396240616,-150.0,0.00023182,2]
[381897450,1756396240626,-150.0,0.00023182,2]
[381897452,1756396240635,-151.20010376,0.00023182,2]
[381897454,1756396240645,-150.0,0.00023182,2]
[381897457,1756396240655,-150.0,0.00023182,2]
[381897458,1756396240664,-500.0,0.00023417,2]
[381897460,1756396240674,-500.0,0.00023417,2]
[381897462,1756396240683,-150.0,0.00023456,2]
[381897464,1756396240693,-500.0,0.00023456,2]
[381897466,1756396240705,-150.0,0.00023456,2]
[381897468,1756396240714,-150.0,0.00023456,2]
[381897470,1756396240722,-150.0,0.00023456,2]
[381897472,1756396240733,-176.15,0.00023516,2]
[381897474,1756396240742,-235.36087604,0.0002369,2]
[381897476,1756396240751,-500.0,0.00023691,2]
[381897478,1756396240760,-546.0,0.00023691,2]
[381897480,1756396240769,-200.0,0.0002373,2]
[381897482,1756396240782,-224.37490696,0.0002373,2]
[381897484,1756396240792,-200.0,0.0002373,2]
[381897486,1756396240802,-200.0,0.0002373,2]
[381897488,1756396240815,-150.0,0.0002373,2]
[381897490,1756396240825,-603.0,0.00023965,2]
[381897492,1756396240834,-154.04,0.00023973,2]
[381897494,1756396240843,-2021.1441,0.0002399,2]
[381897496,1756396240855,-502.04515494,0.000249,2]
[381897499,1756396240865,-1000.0,0.00024903,2]
[381897501,1756396240875,-502.0451548,0.00025859,4]
[381897503,1756396240886,-300.0,0.000259,9]
[381897505,1756396240895,-2021.1441,0.0002599,2]
[381897507,1756396240904,-150.0,0.00026255,2]
[381897509,1756396240914,-18066.68,0.00026255,2]
[381897511,1756396240923,-718.0,0.00026255,2]
[381897513,1756396240933,-3405.487,0.00026255,2]
[381897515,1756396240942,-4155.0,0.00026255,2]
[381897517,1756396240951,-158.5625584,0.00026299,2]
[381897519,1756396240961,-223.68300048,0.000263,2]
[381897521,1756396240970,-14448.81603489,0.000264,7]
[381897523,1756396240985,-42650.17805608,0.000264,7]
[381897525,1756396240999,-7404.13486183,0.000264,7]
[381897527,1756396241009,-190.703017,0.000264,7]
[381897529,1756396241019,-190.703017,0.000264,7]
[381897532,1756396241028,-190.703017,0.000264,7]
[381897534,1756396241038,-190.703017,0.000264,7]
[381897536,1756396241048,-246.32477,0.000264,7]
[381897538,1756396241057,-246.32477,0.000264,7]
[381897540,1756396241067,-246.32477,0.000264,7]
[381897542,1756396241076,-246.32477,0.000264,7]
[381897544,1756396241085,-151.0,0.000264,7]
[381897545,1756396241096,-151.0,0.000264,7]
[381897547,1756396241105,-151.0,0.000264,7]
[381897549,1756396241115,-151.0,0.000264,7]
[381897551,1756396241124,-4950.72825903,0.0002662,2]
[381897553,1756396241134,-502.0451548,0.00026817,6]
[381897555,1756396241143,-10458.67719656,0.00027137,2]
[381897557,1756396241152,-530.0,0.00027137,2]
[381897559,1756396241162,-176.15,0.00027169,2]
[381897561,1756396241171,-1000.0,0.00027393,2]
[381897563,1756396241181,-593.954,0.00027494,16]
[381897565,1756396241191,-2021.1441,0.0002799,2]
[381897567,1756396241200,-662.56051317,0.00028236,2]
[381897569,1756396241210,-250.0,0.0002847,2]
[381897571,1756396241220,-150.0,0.00029255,2]
[381897573,1756396241230,-662.56051317,0.00029265,2]
[381897575,1756396241240,-502.0451548,0.00029693,12]
[381897577,1756396241250,-162.0,0.000298,7]
[381897580,1756396241261,-162.0,0.000298,14]
[381897582,1756396241271,-212.25325354,0.00029805,2]
[381897584,1756396241282,-409.82097998,0.00029805,2]
[381897585,1756396241292,-160.0,0.00029805,2]
[381897588,1756396241302,-1000.0,0.00029883,2]
[381897590,1756396241312,-2021.1441,0.0002999,2]
[381897592,1756396241322,-38263.48176473,0.00030024,2]
[381897594,1756396241335,-1283.91571,0.00030024,2]
[381897596,1756396241346,-2839.22024586,0.00030024,2]
[381897599,1756396241362,-2252.50000001,0.00030024,2]
[381897737,1756396244640,-235.36087604,0.00026565,2]
[381897738,1756396244651,-3607.30286709,0.00030024,2]
[381897739,1756396244720,-1148.25207896,0.00030024,2]
[381897740,1756396244735,-227.07880639,0.00030024,2]
[381897741,1756396244746,-114.75691913,0.00030652,14]
[381897742,1756396244758,-387.28823567,0.00030652,14]
[381897743,1756396244767,-176.15,0.00030822,2]
[381897744,1756396244777,-256.0,0.00030924,2]
[381897745,1756396244786,-256.0,0.00030924,2]
[381897746,1756396244795,-256.0,0.00030924,2]
[381897747,1756396244805,-256.0,0.00030924,2]
[381897748,1756396244818,-256.0,0.00030924,2]
[381897749,1756396244827,-256.0,0.00030924,2]
[381897750,1756396244836,-256.0,0.00030924,2]
[381897751,1756396244847,-256.0,0.00030924,2]
[381897752,1756396244856,-256.0,0.00030924,2]
[381897753,1756396244865,-256.0,0.00030924,2]
[381897754,1756396244874,-256.0,0.00030924,2]
[381897755,1756396244885,-256.0,0.00030924,2]
[381897756,1756396244894,-256.0,0.00030924,2]
[381897757,1756396244904,-256.0,0.00030924,2]
[381897758,1756396244913,-256.0,0.00030924,2]
[381897759,1756396244923,-40.56619368,0.00030924,2]
[381897760,1756396244935,-215.43380632,0.00030924,2]
[381897761,1756396244944,-42.53574895,0.00030924,2]
[381897762,1756396244959,-213.46425105,0.00030924,2]
[381897763,1756396244969,-153.0,0.00030924,2]
[381897764,1756396244979,-153.0,0.00030924,2]
[381897765,1756396244989,-153.0,0.00030924,2]
[381897766,1756396244999,-153.0,0.00030924,2]
[381897768,1756396245009,-153.0,0.00030924,2]
[381897770,1756396245019,-153.0,0.00030924,2]
[381897772,1756396245028,-153.0,0.00030924,2]
[381897774,1756396245038,-153.0,0.00030924,2]
[381897776,1756396245048,-153.0,0.00030924,2]
[381897778,1756396245057,-153.0,0.00030924,2]
[381897780,1756396245067,-153.0,0.00030924,2]
[381897781,1756396245076,-153.0,0.00030924,2]
[381897782,1756396245086,-50.53574895,0.00030924,2]
[381897783,1756396245098,-102.46425105,0.00030924,2]
[381897784,1756396245108,-256.0,0.00030924,2]
[381897785,1756396245117,-256.0,0.00030924,2]
[381897786,1756396245127,-256.0,0.00030924,2]
[381897787,1756396245137,-256.0,0.00030924,2]
[381897788,1756396245147,-256.0,0.00030924,2]
[381897789,1756396245157,-256.0,0.00030924,2]
[381897790,1756396245166,-157.78574895,0.00030924,2]
[381897791,1756396245181,-98.21425105,0.00030924,2]
[381897792,1756396245190,-256.0,0.00030924,2]
[381897793,1756396245200,-256.0,0.00030924,2]
[381897794,1756396245210,-256.0,0.00030924,2]
[381897795,1756396245220,-256.0,0.00030924,2]
[381897796,1756396245229,-256.0,0.00030924,2]
[381897797,1756396245239,-256.0,0.00030924,2]
[381897798,1756396245248,-256.0,0.00030924,2]
[381897799,1756396245257,-153.0,0.00030924,2]
[381897800,1756396245266,-153.0,0.00030924,2]
[381897801,1756396245277,-153.0,0.00030924,2]
[381897802,1756396245286,-153.0,0.00030924,2]
[381897803,1756396245296,-153.0,0.00030924,2]
[381897804,1756396245306,-153.0,0.00030924,2]
[381897805,1756396245315,-153.0,0.00030924,2]
[381897806,1756396245325,-153.0,0.00030924,2]
[381897807,1756396245334,-153.0,0.00030924,2]
[381897808,1756396245343,-153.0,0.00030924,2]
[381897809,1756396245353,-153.0,0.00030924,2]
[381897810,1756396245362,-256.0,0.00030924,2]
[381897811,1756396245371,-256.0,0.00030924,2]
[381897812,1756396245381,-256.0,0.00030924,2]
[381897813,1756396245390,-256.0,0.00030924,2]
[381897814,1756396245399,-256.0,0.00030924,2]
[381897815,1756396245408,-256.0,0.00030924,2]
[381897816,1756396245418,-256.0,0.00030924,2]
[381897817,1756396245428,-256.0,0.00030924,2]
[381897818,1756396245437,-256.0,0.00030924,2]
[381897819,1756396245446,-256.0,0.00030924,2]
[381897820,1756396245455,-256.0,0.00030924,2]
[381897821,1756396245464,-256.0,0.00030924,2]
[381897822,1756396245474,-256.0,0.00030924,2]
[381897823,1756396245483,-256.0,0.00030924,2]
[381897824,1756396245493,-153.0,0.00030924,2]
[381897825,1756396245503,-153.0,0.00030924,2]
[381897826,1756396245512,-153.0,0.00030924,2]
[381897827,1756396245521,-153.0,0.00030924,2]
[381897828,1756396245530,-153.0,0.00030924,2]
[381897829,1756396245539,-153.0,0.00030924,2]
[381897830,1756396245549,-153.0,0.00030924,2]
[381897831,1756396245559,-153.0,0.00030924,2]
[381897832,1756396245568,-153.0,0.00030924,2]
[381897833,1756396245578,-153.0,0.00030924,2]
[381897834,1756396245587,-153.0,0.00030924,2]
[381897835,1756396245596,-256.0,0.00030924,2]
[381897836,1756396245606,-256.0,0.00030924,2]
[381897837,1756396245615,-256.0,0.00030924,2]
[381897838,1756396245625,-256.0,0.00030924,2]
[381897839,1756396245634,-256.0,0.00030924,2]
[381897840,1756396245643,-256.0,0.00030924,2]
[381897841,1756396245652,-256.0,0.00030924,2]
[381897842,1756396245661,-256.0,0.00030924,2]
[381897843,1756396245670,-256.0,0.00030924,2]
[381897844,1756396245680,-256.0,0.00030924,2]
[381897845,1756396245689,-256.0,0.00030924,2]
[381897846,1756396245698,-256.0,0.00030924,2]
[381897847,1756396245707,-256.0,0.00030924,2]
[381897848,1756396245716,-256.0,0.00030924,2]
[381897849,1756396245726,-153.0,0.00030924,2]
[381897850,1756396245736,-153.0,0.00030924,2]
[381897851,1756396245745,-153.0,0.00030924,2]
[381897852,1756396245754,-153.0,0.00030924,2]
[381897853,1756396245764,-153.0,0.00030924,2]
[381897854,1756396245773,-153.0,0.00030924,2]
[381897855,1756396245782,-153.0,0.00030924,2]
[381897856,1756396245791,-153.0,0.00030924,2]
[381897857,1756396245801,-153.0,0.00030924,2]
[381897858,1756396245812,-153.0,0.00030924,2]
[381897859,1756396245821,-153.0,0.00030924,2]
[381897860,1756396245830,-256.0,0.00030924,2]
[381897861,1756396245840,-256.0,0.00030924,2]
[381897862,1756396245851,-256.0,0.00030924,2]
[381897863,1756396245860,-256.0,0.00030924,2]
[381897864,1756396245870,-256.0,0.00030924,2]
[381897865,1756396245879,-256.0,0.00030924,2]
[381897866,1756396245889,-256.0,0.00030924,2]
[381897867,1756396245898,-256.0,0.00030924,2]
[381897868,1756396245907,-256.0,0.00030924,2]
[381897869,1756396245916,-256.0,0.00030924,2]
[381897870,1756396245925,-256.0,0.00030924,2]
[381897871,1756396245934,-256.0,0.00030924,2]
[381897872,1756396245943,-256.0,0.00030924,2]
[381897873,1756396245952,-256.0,0.00030924,2]
[381897874,1756396245961,-153.0,0.00030924,2]
[381897875,1756396245970,-153.0,0.00030924,2]
[381897876,1756396245979,-153.0,0.00030924,2]
[381897877,1756396245991,-153.0,0.00030924,2]
[381897878,1756396246001,-153.0,0.00030924,2]
[381897879,1756396246011,-153.0,0.00030924,2]
[381897880,1756396246020,-153.0,0.00030924,2]
[381897881,1756396246029,-153.0,0.00030924,2]
[381897882,1756396246038,-153.0,0.00030924,2]
[381897883,1756396246047,-153.0,0.00030924,2]
[381897884,1756396246057,-153.0,0.00030924,2]
[381897885,1756396246067,-256.0,0.00030924,2]
[381897886,1756396246075,-256.0,0.00030924,2]
[381897887,1756396246084,-256.0,0.00030924,2]
[381897888,1756396246094,-256.0,0.00030924,2]
[381897889,1756396246103,-256.0,0.00030924,2]
[381897890,1756396246112,-256.0,0.00030924,2]
[381897891,1756396246121,-256.0,0.00030924,2]
[381897892,1756396246130,-256.0,0.00030924,2]
[381897893,1756396246139,-256.0,0.00030924,2]
[381897894,1756396246148,-256.0,0.00030924,2]
[381897895,1756396246157,-256.0,0.00030924,2]
[381897896,1756396246166,-256.0,0.00030924,2]
[381897897,1756396246175,-256.0,0.00030924,2]
[381897898,1756396246184,-153.0,0.00030924,2]
[381897899,1756396246193,-153.0,0.00030924,2]
[381897900,1756396246202,-153.0,0.00030924,2]
[381897901,1756396246211,-153.0,0.00030924,2]
[381897902,1756396246221,-153.0,0.00030924,2]
[381897903,1756396246231,-153.0,0.00030924,2]
[381897904,1756396246242,-153.0,0.00030924,2]
[381897905,1756396246251,-153.0,0.00030924,2]
[381897906,1756396246261,-153.0,0.00030924,2]
[381897908,1756396246270,-153.0,0.00030924,2]
[381897910,1756396246279,-153.0,0.00030924,2]
[381897912,1756396246289,-256.0,0.00030924,2]
[381897914,1756396246299,-256.0,0.00030924,2]
[381897916,1756396246308,-256.0,0.00030924,2]
[381897918,1756396246318,-256.0,0.00030924,2]
[381897920,1756396246327,-256.0,0.00030924,2]
[381897922,1756396246337,-256.0,0.00030924,2]
[381897923,1756396246346,-256.0,0.00030924,2]
[381897924,1756396246356,-256.0,0.00030924,2]
[381897925,1756396246366,-256.0,0.00030924,2]
[381897926,1756396246375,-256.0,0.00030924,2]
[381897927,1756396246385,-256.0,0.00030924,2]
[381897928,1756396246394,-153.0,0.00030924,2]
[381897929,1756396246404,-153.0,0.00030924,2]
[381897930,1756396246413,-153.0,0.00030924,2]
[381897931,1756396246423,-153.0,0.00030924,2]
[381897932,1756396246432,-153.0,0.00030924,2]
[381897933,1756396246441,-153.0,0.00030924,2]
[381897934,1756396246450,-153.0,0.00030924,2]
[381897935,1756396246460,-153.0,0.00030924,2]
[381897936,1756396246469,-153.0,0.00030924,2]
[381897937,1756396246479,-190.703017,0.00030924,7]
[381897938,1756396246489,-190.703017,0.00030924,7]
[381897939,1756396246499,-190.703017,0.00030924,7]
[381897940,1756396246509,-190.703017,0.00030924,7]
[381897941,1756396246518,-151.0,0.00031318,7]
[381897942,1756396246528,-502.0451548,0.0003161,16]
[381897943,1756396246538,-1560.0,0.00032367,2]
[381897944,1756396246547,-150.0,0.00032467,120]
[381897945,1756396246557,-151.0,0.0003253,7]
[381897946,1756396246566,-502.0451548,0.00032569,18]
[381897947,1756396246576,-246.32477,0.00032672,7]
[381897948,1756396246585,-246.32477,0.00032672,7]
[381897949,1756396246594,-246.32477,0.00032672,7]
[381897950,1756396246604,-246.32477,0.00032672,7]
[381897951,1756396246613,-1560.0,0.00032701,2]
[381897952,1756396246622,-500.0,0.00032779,7]
[381897953,1756396246631,-503.0,0.00032795,2]
[381897954,1756396246640,-190.79823937,0.00032921,2]
[381897955,1756396246649,-162.0,0.00033,45]
[381897956,1756396246659,-162.0,0.00033,33]
[381897957,1756396246668,-1000.0,0.00033,2]
[381897958,1756396246677,-1560.0,0.00033035,2]
[381897959,1756396246686,-151.0,0.00033035,7]
[381897960,1756396246696,-1560.0,0.00033368,2]
[381897961,1756396246705,-508.95007851,0.00033368,2]
[381897962,1756396246714,-500.0,0.00033377,2]
[381897963,1756396246723,-166.13639112,0.00033419,2]
[381897964,1756396246732,-26026.6750908,0.00033518,2]
[381897965,1756396246742,-19762.8700153,0.00033518,2]
[381897966,1756396246751,-246.32477,0.00033519,7]
[381897967,1756396246760,-246.32477,0.00033519,7]
[381897968,1756396246770,-246.32477,0.00033519,7]
[381897969,1756396246779,-246.32477,0.00033519,7]
[381897970,1756396246789,-151.0,0.00033519,7]
[381897971,1756396246799,-52053.3501817,0.0003352,2]
[381897972,1756396246812,-59288.6100458,0.0003352,2]
[381897973,1756396246822,-151.73,0.0003352,2]
[381897974,1756396246831,-245.22753623,0.0003352,2]
[381897975,1756396246841,-502.0451548,0.00033528,20]
[381897976,1756396246852,-149508.66322989,0.0003353,2]
[381897977,1756396246861,-3450.47354028,0.0003353,2]
[381897978,1756396246872,-581.0,0.0003353,120]
[381897979,1756396246882,-580.0,0.0003353,120]
[381897980,1756396246892,-1285.49314283,0.0003353,60]
[381897981,1756396246902,-1673.42134699,0.0003353,90]
[381897982,1756396246911,-1141.26163612,0.0003353,120]
[381897983,1756396246920,-1284.59666887,0.0003353,120]
[381897984,1756396246930,-1201.98250461,0.0003353,120]
[381897985,1756396246941,-1318.37441686,0.0003353,120]
[381897986,1756396246951,-1694.92458132,0.0003353,30]
[381897987,1756396246960,-1250.0,0.0003353,120]
[381897988,1756396246969,-1288.74993537,0.0003353,120]
[381897989,1756396246979,-1169.97122207,0.0003353,120]
[381897990,1756396246989,-1240.34725626,0.0003353,120]
[381897991,1756396246998,-1240.10369462,0.0003353,60]
[381897992,1756396247008,-1149.72183711,0.0003353,120]
[381897993,1756396247018,-500.0,0.0003353,2]
[381897994,1756396247028,-500.0,0.0003353,2]
[381897995,1756396247036,-500.0,0.0003353,2]
[381897996,1756396247046,-500.0,0.0003353,2]
[381897997,1756396247055,-359.07301049,0.0003353,2]
[381897998,1756396247065,-246.32477,0.0003353,7]
[381897999,1756396247074,-246.32477,0.0003353,7]
[381898000,1756396247083,-246.32477,0.0003353,7]
[381898001,1756396247092,-246.324778,0.0003353,7]
[381898002,1756396247102,-151.0,0.0003353,7]
[381898003,1756396247112,-4000.0,0.00033596,4]
[381898004,1756396247122,-190.71,0.000336,14]
[381898005,1756396247131,-1560.0,0.00033702,2]
[381898006,1756396247140,-241.0,0.000338,2]
[381898007,1756396247150,-511.0,0.000338,2]
[381898008,1756396247159,-600.0,0.000339,12]
[381898009,1756396247169,-26026.6750908,0.00034026,2]
[381898011,1756396247178,-1560.0,0.00034036,2]
[381898013,1756396247187,-154.04,0.00034247,2]
[381898015,1756396247196,-19762.8700153,0.00034359,2]
[381898017,1756396247206,-1560.0,0.00034369,2]
[381898019,1756396247215,-954.0,0.00034382,5]
[381898021,1756396247226,-502.0451548,0.00034486,22]
[381898023,1756396247235,-150.0,0.00034632,120]
[381898025,1756396247245,-150.0,0.00035019,120]
[381898027,1756396247254,-150.0,0.00035298,120]
[381898029,1756396247263,-502.0451548,0.00035445,24]
[381898031,1756396247273,-150.0,0.00035871,120]
[381898033,1756396247282,-212.0,0.0003589,30]
[381898035,1756396247291,-154.0,0.0003589,30]
[381898037,1756396247300,-1556.82626534,0.00036,120]
[381898039,1756396247311,-1236.96206691,0.00036,120]
[381898041,1756396247321,-154.0,0.00036,30]
[381898043,1756396247330,-212.0,0.00036,30]
[381898045,1756396247340,-502.0451548,0.00036403,26]
[381898047,1756396247350,-26026.6750908,0.0003698,3]
[381898049,1756396247359,-19762.8700153,0.0003698,3]
[381898051,1756396247369,-5262.0,0.00037,117]
[381898053,1756396247378,-155.12985476,0.000372,120]
[381898055,1756396247388,-900.0,0.00037246,14]
[381898057,1756396247398,-502.0451548,0.00037362,29]
[381898059,1756396247407,-150.0,0.00037381,7]
[381898061,1756396247416,-212.0,0.00037397,30]
[381898063,1756396247426,-154.0,0.00037397,30]
[381898065,1756396247437,-280.0,0.000374,30]
[381898067,1756396247447,-4000.0,0.00037697,4]
[381898069,1756396247457,-1031.69671315,0.00038,120]
[381898071,1756396247467,-150.0,0.00038212,7]
[381898073,1756396247477,-500.0,0.00038269,7]
[381898075,1756396247488,-502.0451548,0.00038321,31]
[381898077,1756396247498,-26026.6750908,0.00038326,3]
[381898079,1756396247508,-19762.8700153,0.00038326,3]
[381898081,1756396247517,-1172.88,0.00038335,120]
[381898083,1756396247527,-150.0,0.00038335,20]
[381898085,1756396247537,-26026.6750908,0.00038336,3]
[381898087,1756396247546,-39525.7400305,0.00038336,3]
[381898089,1756396247556,-190.703017,0.00038336,30]
[381898091,1756396247565,-190.703017,0.00038336,30]
[381898093,1756396247575,-190.703017,0.00038336,30]
[381898095,1756396247584,-190.703017,0.00038336,30]
[381898097,1756396247593,-52053.3501817,0.00038346,3]
[381898098,1756396247603,-59288.6100458,0.00038346,3]
[381898100,1756396247613,-400.0,0.00038356,7]
[381898102,1756396247623,-400.0,0.00038356,7]
[381898104,1756396247632,-400.0,0.00038356,7]
[381898123,1756396247800,-400.0,0.00038356,7]
[381898125,1756396247814,-400.0,0.00038356,7]
[381898127,1756396247824,-400.0,0.00038356,7]
[381898129,1756396247833,-400.0,0.00038356,7]
[381898131,1756396247843,-400.0,0.00038356,7]
[381898133,1756396247853,-400.0,0.00038356,7]
[381898135,1756396247863,-400.0,0.00038356,7]
[381898137,1756396247872,-400.0,0.00038356,7]
[381898139,1756396247882,-400.0,0.00038356,7]
[381898141,1756396247892,-233.76664416,0.00038356,7]
[381898143,1756396247902,-323.77,0.00038356,7]
[381898145,1756396247912,-400.0,0.00038356,7]
[381898147,1756396247921,-301.86,0.00038356,7]
[381898149,1756396247931,-400.0,0.00038356,7]
[381898151,1756396247940,-216.09,0.00038356,7]
[381898153,1756396247950,-419.11,0.00038356,7]
[381898155,1756396247960,-400.0,0.00038356,7]
[381898157,1756396247969,-400.0,0.00038356,7]
[381898159,1756396247979,-400.0,0.00038356,7]
[381898161,1756396247989,-400.0,0.00038356,7]
[381898163,1756396247998,-400.0,0.00038356,7]
[381898165,1756396248007,-400.0,0.00038356,7]
[381898167,1756396248018,-400.0,0.00038356,7]
[381898169,1756396248027,-400.0,0.00038356,7]
[381898171,1756396248037,-400.0,0.00038356,7]
[381898173,1756396248047,-400.0,0.00038356,7]
[381898175,1756396248056,-400.0,0.00038356,7]
[381898177,1756396248065,-400.0,0.00038356,7]
[381898179,1756396248075,-400.0,0.00038356,7]
[381898181,1756396248084,-400.0,0.00038356,7]
[381898183,1756396248094,-400.0,0.00038356,7]
[381898185,1756396248104,-400.0,0.00038356,7]
[381898187,1756396248114,-400.0,0.00038356,7]
[381898189,1756396248124,-400.0,0.00038356,7]
[381898191,1756396248134,-400.0,0.00038356,7]
[381898193,1756396248144,-400.0,0.00038356,7]
[381898195,1756396248154,-415.85,0.00038356,7]
[381898197,1756396248164,-400.0,0.00038356,7]
[381898199,1756396248173,-395.31783016,0.00038356,7]
[381898201,1756396248183,-400.0,0.00038356,7]
[381898203,1756396248193,-188.28,0.00038356,7]
[381898205,1756396248203,-400.0,0.00038356,7]
[381898207,1756396248212,-400.0,0.00038356,7]
[381898209,1756396248222,-400.0,0.00038356,7]
[381898211,1756396248232,-400.0,0.00038356,7]
[381898213,1756396248244,-400.0,0.00038356,7]
[381898215,1756396248255,-384.9,0.00038356,7]
[381898217,1756396248265,-400.0,0.00038356,7]
[381898219,1756396248275,-400.0,0.00038356,7]
[381898221,1756396248285,-400.0,0.00038356,7]
[381898223,1756396248295,-400.0,0.00038356,7]
[381898225,1756396248305,-400.0,0.00038356,7]
[381898227,1756396248315,-400.0,0.00038356,7]
[381898229,1756396248325,-526.88,0.00038356,7]
[381898231,1756396248335,-400.0,0.00038356,7]
[381898233,1756396248345,-400.0,0.00038356,7]
[381898235,1756396248355,-400.0,0.00038356,7]
[381898237,1756396248365,-400.0,0.00038356,7]
[381898239,1756396248374,-400.0,0.00038356,7]
[381898241,1756396248383,-400.0,0.00038356,7]
[381898242,1756396248394,-400.0,0.00038356,7]
[381898244,1756396248403,-400.0,0.00038356,7]
[381898246,1756396248413,-400.0,0.00038356,7]
[381898248,1756396248423,-400.0,0.00038356,7]
[381898250,1756396248433,-400.0,0.00038356,7]
[381898252,1756396248443,-400.0,0.00038356,7]
[381898254,1756396248453,-421.95,0.00038356,7]
[381898256,1756396248463,-400.0,0.00038356,7]
[381898258,1756396248473,-317.92,0.00038356,7]
[381898260,1756396248482,-400.0,0.00038356,7]
[381898262,1756396248493,-400.0,0.00038356,7]
[381898264,1756396248503,-400.0,0.00038356,7]
[381898266,1756396248513,-400.0,0.00038356,7]
[381898268,1756396248524,-400.0,0.00038356,7]
[381898270,1756396248534,-408.56401216,0.00038356,7]
[381898272,1756396248544,-400.0,0.00038356,7]
[381898274,1756396248553,-400.0,0.00038356,7]
[381898276,1756396248564,-400.0,0.00038356,7]
[381898278,1756396248575,-400.0,0.00038356,7]
[381898280,1756396248586,-402.19345594,0.00038356,7]
[381898282,1756396248595,-400.0,0.00038356,7]
[381898284,1756396248605,-400.0,0.00038356,7]
[381898286,1756396248615,-400.0,0.00038356,7]
[381898288,1756396248625,-400.0,0.00038356,7]
[381898290,1756396248635,-400.0,0.00038356,7]
[381898292,1756396248645,-400.0,0.00038356,7]
[381898294,1756396248655,-400.0,0.00038356,7]
[381898296,1756396248664,-400.0,0.00038356,7]